bitfinex/quotes_ETHUSD_20241129
["timestamp","ask_amount","ask_price","bid_price","bid_amount"]
[1732872900383,0.26161735,3577.7,3577.6,0.03735203]
[1732872900568,0.26161735,3577.9,3577.6,0.03735203]
[1732872900896,0.26161735,3577.8,3577.6,0.03735203]
[1732872901252,0.26161735,3577.7,3577.6,0.03735203]
[1732872903096,0.26161735,3577.7,3577.2,0.7724]
[1732872903255,3.05683735,3577.6,3577.2,0.7724]
[1732872903452,0.26161735,3577.5,3577.3,0.03731082]
[1732872903655,0.26161735,3577.4,3577.3,0.03731082]
[1732872903855,0.26161735,3577.7,3577.3,0.03731082]
[1732872904056,0.26161735,3577.6,3577.3,0.03731082]
[1732872904265,2.79502,3577.8,3577.3,0.03731082]
[1732872904497,0.2617834,3577.7,3577.3,0.03731082]
[1732872904698,0.2617834,3577.6,3577.3,0.03731082]
[1732872904899,0.2617834,3577.5,3577.3,0.03731082]
[1732872905203,0.2617834,3577.4,3577.3,0.03731082]
[1732872905389,0.2617834,3577.6,3577.3,0.03731082]
[1732872905590,0.2617834,3577.5,3577.3,0.03731082]
[1732872905900,0.2617834,3577.4,3577.3,0.03731082]
[1732872906100,0.2617834,3577.5,3577.3,0.03731082]
[1732872906264,0.2617834,3577.4,3577.3,0.03731082]
[1732872906460,0.2617834,3577.5,3577.3,0.03731082]
[1732872906660,2.79519,3577.6,3577.3,0.03731082]
[1732872906960,0.26178832,3577.5,3577.3,0.03731082]
[1732872907258,0.26179024,3577.4,3577.3,0.03731082]
[1732872907478,2.79467,3578.3,3577.3,0.03731082]
[1732872907479,1.05068943,3577.6,3577.3,0.03731082]
[1732872907804,2.79532,3577.4,3577.3,0.03731082]
[1732872908103,0.26178943,3577.4,3577.3,0.03734221]
[1732872908304,0.26178943,3577.4,3576.9,0.7951]
[1732872908597,2.79533,3577.4,3577.3,0.03734221]
[1732872908908,3.05718853,3577.4,3577.3,0.03734221]
[1732872909197,3.05718853,3577.4,3576.9,0.7951]
[1732872909387,2.79533,3577.4,3577.3,0.03734221]
[1732872909600,2.79533,3577.4,3576.9,2.28382003]
[1732872909601,0.26190198,3577.4,3576.9,2.28382003]
[1732872909799,2.79488,3578.0,3577.3,3.62904221]
[1732872910001,0.26190198,3577.9,3577.4,2.79532]
[1732872910202,0.26190198,3577.8,3577.4,2.83264231]
[1732872910415,0.26190198,3577.7,3577.4,2.83264231]
[1732872910600,2.79478,3578.1,3577.4,2.83264231]
[1732872911192,2.79501,3577.8,3577.4,0.03732231]
[1732872911587,2.79488,3578.0,3577.4,0.03732231]
[1732872912227,2.79496,3577.9,3577.4,0.03732231]
[1732872912791,2.79477,3578.1,3577.4,0.03732231]
[1732872913227,0.55,3578.2,3577.4,0.40022254]
[1732872913517,3.3447,3578.2,3577.6,2.79512]
[1732872913819,3.3447,3578.2,3577.4,3.19551254]
[1732872914023,3.3447,3578.2,3577.7,0.03719308]
[1732872914222,2.79478,3578.1,3577.4,3.15819023]
[1732872914379,2.79478,3578.1,3577.8,0.03714852]
[1732872914576,2.79478,3578.1,3577.4,3.15819023]
[1732872914781,2.79478,3578.1,3577.9,0.03710396]
[1732872915110,2.79486,3578.0,3577.4,2.79529]
[1732872915507,2.79494,3577.9,3577.3,0.7963]
[1732872915713,2.79522,3577.6,3577.3,0.7963]
[1732872916323,2.79522,3577.6,3577.0,0.228382]
[1732872916324,2.79525,3577.5,3577.0,0.8059]
[1732872916986,2.79509,3577.7,3576.7,0.7923]
[1732872917313,2.79554,3577.2,3576.7,0.7923]
[1732872918435,2.79557,3577.1,3576.7,0.7923]
[1732872919825,2.7954,3577.3,3576.7,0.7923]
[1732872920119,2.79565,3577.0,3576.7,0.7923]
[1732872920324,2.79565,3577.0,3576.2,3.0]
[1732872920477,2.79565,3577.0,3576.3,4.276874]
[1732872921283,2.7954,3577.3,3576.4,2.79609]
[1732872921284,2.79562,3577.1,3576.4,2.79609]
[1732872924160,2.79562,3577.1,3576.3,1.480704]
[1732872924161,2.79532,3577.4,3576.8,2.79578]
[1732872924455,2.79548,3577.2,3576.6,3.55414]
[1732872924660,2.79532,3577.4,3576.6,3.55414]
[1732872924828,0.7668,3577.6,3576.3,2.21722403]
[1732872924829,0.55,3577.5,3576.9,2.79565]
[1732872925355,3.3451,3577.7,3576.8,0.7542]
[1732872926077,2.79531,3577.5,3576.8,3.54998]
[1732872926774,3.3451,3577.7,3576.8,0.7542]
[1732872926948,2.79528,3577.5,3576.8,0.7542]
[1732872927131,2.79528,3577.5,3576.9,2.79569]
[1732872927332,0.477652,3577.9,3577.3,0.8032]
[1732872927672,0.477652,3577.9,3577.4,0.03750169]
[1732872928765,0.477652,3577.9,3577.4,2.83280169]
[1732872929176,0.477652,3577.9,3577.4,3.47595586]
[1732872929349,0.477652,3577.9,3577.4,0.68065586]
[1732872930486,0.477652,3577.9,3577.4,3.47594586]
[1732872931183,0.477652,3577.9,3577.4,0.68065586]
[1732872931350,3.54611,3577.8,3577.4,0.03750169]
[1732872931696,2.79509,3577.7,3577.4,0.03750169]
[1732872932360,2.79517,3577.6,3576.5,2.79601]
[1732872932590,0.55,3577.3,3576.6,0.7742]
[1732872932806,2.79549,3577.2,3576.6,0.7742]
[1732872933008,3.34542,3577.3,3576.6,3.57013]
[1732872933779,2.79549,3577.2,3576.6,3.57013]
[1732872934759,2.79537,3577.4,3576.7,0.8184]
[1732872935104,2.79539,3577.4,3576.7,3.61425]
[1732872935685,2.79516,3577.6,3576.7,3.61425]
[1732872935686,2.79547,3577.3,3576.7,0.8184]
[1732872936496,2.79547,3577.3,3576.7,3.61426]
[1732872938205,0.55,3577.7,3576.7,3.61426]
[1732872938416,2.79525,3577.5,3576.8,0.4399762]
[1732872938583,2.79525,3577.5,3576.8,3.2357562]
[1732872939266,2.79534,3577.4,3576.8,0.4399762]
[1732872939490,2.79534,3577.4,3576.7,3.61426]
[1732872939680,2.79534,3577.4,3576.7,3.61425]
[1732872940265,0.55,3577.7,3576.7,0.8184]
[1732872940666,2.79556,3577.1,3576.7,0.8184]
[1732872941289,2.79579,3576.8,3576.2,0.8142]
[1732872941636,2.79601,3576.6,3576.2,0.8142]
[1732872941796,2.79604,3576.5,3576.2,0.8142]
[1732872941996,0.55,3576.8,3576.2,0.8142]
[1732872942194,0.389571,3576.7,3576.2,0.8142]
[1732872942543,2.79607,3576.5,3575.7,0.8113]
[1732872942707,2.79607,3576.5,3575.6,1.48872003]
[1732872942708,2.79607,3576.5,3576.0,0.8113]
[1732872943738,2.79607,3576.5,3576.1,0.08754435]
[1732872944040,2.79612,3576.4,3576.1,0.08754435]
[1732872944817,2.79595,3576.6,3576.1,0.08754435]
[1732872945020,2.79605,3576.5,3576.1,0.08754435]
[1732872945752,2.79606,3576.5,3576.1,0.08754435]
[1732872946332,2.79616,3576.4,3576.1,0.08754435]
[1732872947218,2.7962,3576.3,3576.1,0.08754435]
[1732872947623,2.79626,3576.2,3576.1,0.08754435]
[1732872948722,2.79616,3576.4,3576.1,0.08754435]
[1732872948919,2.79596,3576.6,3576.1,0.08754435]
[1732872949121,2.79626,3576.2,3576.1,0.08754435]
[1732872949535,2.79626,3576.2,3575.7,0.7682]
[1732872949849,2.79649,3576.0,3575.7,0.7682]
[1732872952658,3.58651,3576.4,3575.7,0.7682]
[1732872952967,0.55,3576.3,3575.7,0.7682]
[1732872953306,2.79632,3576.2,3575.7,0.7682]
[1732872953708,0.55,3576.3,3575.7,0.7682]
[1732872953910,2.79634,3576.1,3575.7,0.7682]
[1732872958358,2.79601,3576.6,3575.7,0.3565]
[1732872958547,2.79601,3576.6,3575.9,2.79649]
[1732872959070,2.79601,3576.6,3576.1,0.8146]
[1732872959355,2.79601,3576.6,3576.2,0.08802315]
[1732872960483,2.79611,3576.4,3576.2,0.08802315]
[1732872960644,2.79618,3576.3,3576.2,0.08802315]
[1732872961275,2.79606,3576.5,3576.2,0.08802315]
[1732872961546,2.79614,3576.4,3576.2,0.08802315]
[1732872962744,2.79618,3576.3,3576.2,0.08802315]
[1732872963071,1.33861,3576.4,3575.8,0.796]
[1732872963243,2.79626,3576.2,3575.9,0.08816137]
[1732872963674,2.79642,3576.0,3575.9,0.08816137]
[1732872964074,2.79642,3576.0,3575.8,0.796]
[1732872964384,2.79642,3576.0,3575.9,0.08816137]
[1732872965394,2.79642,3576.0,3575.5,0.7852]
[1732872965688,2.79637,3576.1,3575.5,0.7852]
[1732872965856,2.79643,3576.0,3575.6,0.08833325]
[1732872966185,2.7966,3575.8,3575.6,0.08833325]
[1732872966390,2.79665,3575.7,3575.6,0.08833325]
[1732872966558,3.626315,3575.7,3575.6,0.08833325]
[1732872966763,4.379715,3575.7,3575.6,0.08833325]
[1732872966963,2.79701,3575.3,3574.9,0.7869]
[1732872967352,2.79701,3575.3,3575.0,0.08870406]
[1732872968661,2.79681,3575.5,3575.0,0.08870406]
[1732872968848,2.79689,3575.4,3575.0,0.08870406]
[1732872971265,2.7971,3575.2,3575.0,0.08870406]
[1732872971456,2.79712,3575.1,3574.7,0.787]
[1732872971792,2.7971,3575.2,3574.1,2.79783]
[1732872971793,2.79728,3574.9,3574.8,0.08879626]
[1732872972194,2.79728,3574.9,3574.5,0.7773]
[1732872972366,2.79728,3574.9,3574.8,0.0889691]
[1732872972905,0.55,3575.0,3574.5,0.7773]
[1732872973059,0.55,3575.0,3574.6,0.08906132]
[1732872973257,2.79739,3574.8,3574.6,0.08906132]
[1732872974259,2.79729,3574.9,3574.6,0.08906132]
[1732872974653,2.79736,3574.8,3574.6,0.08906132]
[1732872976882,2.7972,3575.0,3574.6,0.08906132]
[1732872977086,2.79679,3575.6,3574.6,0.08906132]
[1732872977087,0.7785,3575.5,3574.6,0.45546745]
[1732872977301,2.79693,3575.4,3574.7,0.8015]
[1732872977603,2.79654,3575.9,3575.0,3.59863]
[1732872977604,2.79665,3575.7,3575.0,3.59863]
[1732872977784,0.7785,3575.9,3575.0,0.8015]
[1732872978105,1.03983715,3575.9,3575.1,0.76563562]
[1732872978596,2.79659,3575.8,3575.1,3.56273562]
[1732872978793,2.79671,3575.7,3575.1,0.76563562]
[1732872979556,3.57501,3575.9,3575.1,0.76563562]
[1732872979895,2.79673,3575.6,3575.1,0.08896609]
[1732872980596,2.7966,3575.8,3575.1,0.08896609]
[1732872981091,2.7966,3575.8,3575.2,0.8289]
[1732872981454,2.7966,3575.8,3575.3,0.0888739]
[1732872981650,3.60134,3576.1,3575.3,0.0888739]
[1732872981651,3.34688,3575.4,3575.3,0.0888739]
[1732872981898,3.34688,3575.4,3574.8,0.8057]
[1732872981899,0.55,3575.4,3574.8,0.8057]
[1732872982084,2.79698,3575.3,3574.9,0.08905829]
[1732872982685,0.55,3575.4,3574.9,0.08905829]
[1732872982864,2.79707,3575.2,3574.9,0.08905829]
[1732872983798,2.79718,3575.1,3574.9,0.08905829]
[1732872984777,2.79718,3575.1,3574.5,0.8143]
[1732872984977,2.79718,3575.1,3575.0,0.08901219]
[1732872985177,2.79736,3574.8,3574.3,0.7868]
[1732872985490,2.79741,3574.8,3574.3,0.7868]
[1732872986054,2.79741,3574.8,3574.4,0.08928884]
[1732872986161,2.79753,3574.6,3574.4,0.08928884]
[1732872986585,4.14129,3574.5,3574.4,0.08928884]
[1732872986905,2.79789,3574.2,3573.7,0.8062]
[1732872987106,2.79785,3574.2,3573.8,0.08961276]
[1732872987425,2.79785,3574.2,3573.7,0.8062]
[1732872987575,2.79781,3574.3,3573.9,0.08956663]
[1732872987760,2.79781,3574.3,3573.8,0.08961276]
[1732872987960,3.34767,3574.4,3574.0,0.0895205]
[1732872988161,2.79784,3574.2,3573.9,0.08956663]
[1732872988361,2.79784,3574.2,3574.1,0.08947437]
[1732872988603,2.79784,3574.2,3574.0,0.0895205]
[1732872988894,2.79784,3574.2,3574.1,0.08947437]
[1732872989103,0.3947259,3574.2,3573.7,0.8062]
[1732872989297,2.79791,3574.1,3573.8,0.08961276]
[1732872989500,2.79791,3574.1,3573.7,0.8062]
[1732872989718,2.79791,3574.1,3573.8,0.08961276]
[1732872990008,2.79791,3574.1,3573.7,0.8062]
[1732872990163,2.79791,3574.1,3573.1,2.79868]
[1732872990164,2.79798,3574.0,3573.9,0.08956663]
[1732872990362,2.79798,3574.0,3573.8,0.08961276]
[1732872990603,2.79798,3574.0,3573.5,0.7638]
[1732872990807,2.79798,3574.0,3573.9,0.08956663]
[1732872991103,2.79798,3574.0,3573.5,0.7638]
[1732872991325,2.79798,3574.0,3573.6,0.08970503]
[1732872993204,2.79806,3573.9,3573.6,0.08970503]
[1732872993878,2.79794,3574.1,3573.6,0.08970503]
[1732872994078,2.79801,3574.0,3573.6,0.08970503]
[1732872994394,2.79792,3574.1,3573.6,0.08970503]
[1732872995004,3.34768,3574.4,3573.6,0.08970503]
[1732872995302,0.55,3574.1,3573.6,0.08970503]
[1732872996268,2.79792,3574.1,3573.6,0.08970503]
[1732872997673,0.55,3574.3,3573.6,0.08970503]
[1732872997674,3.34776,3574.3,3573.6,0.08970503]
[1732872998113,2.79785,3574.2,3573.6,0.08970503]
[1732872998279,0.55,3574.1,3573.6,0.08970503]
[1732872998792,0.771,3574.8,3573.7,0.7715]
[1732872999002,0.26145137,3575.0,3574.4,2.79766]
[1732872999172,2.79727,3575.0,3574.2,3.56932]
[1732872999372,2.79727,3575.0,3574.5,0.08967397]
[1732872999597,2.79727,3575.0,3574.3,2.79774]
[1732873000067,2.79727,3575.0,3574.4,0.08972009]
[1732873001591,2.79727,3575.0,3574.4,2.88739009]
[1732873001793,2.79727,3575.0,3574.4,0.08972009]
[1732873002006,2.79706,3575.2,3574.4,0.08972009]
[1732873002207,0.26149822,3575.1,3574.5,2.79753]
[1732873002419,3.34706,3575.2,3574.5,2.88720397]
[1732873002569,0.55,3575.2,3574.6,2.79744]
[1732873002769,0.8114933,3575.2,3574.7,0.7722]
[1732873003082,0.55,3575.2,3574.7,0.86178175]
[1732873006572,0.55,3574.9,3574.7,0.08958175]
[1732873006768,3.34735,3574.8,3574.7,0.08958175]
[1732873007016,4.41166189,3574.8,3574.7,0.08958175]
[1732873007169,4.41166189,3574.8,3573.8,0.781]
[1732873007170,2.7977,3574.4,3573.8,0.781]
[1732873007372,0.55,3574.3,3573.8,0.781]
[1732873007673,3.3478,3574.3,3573.9,0.08979572]
[1732873008515,2.79783,3574.2,3573.9,0.08979572]
[1732873009396,3.62133,3574.2,3573.5,6.70811095]
[1732873009623,3.62133,3574.2,3574.0,0.08974959]
[1732873009845,3.62133,3574.2,3573.5,6.70811095]
[1732873010338,3.62133,3574.2,3573.6,0.08993412]
[1732873014031,2.79796,3574.1,3573.6,0.08993412]
[1732873014551,2.79801,3574.0,3573.6,0.08993412]
[1732873015725,0.55,3574.1,3573.6,0.08993412]
[1732873016368,3.34791,3574.1,3573.6,0.08993412]
[1732873018652,0.55,3574.2,3573.6,0.08993412]
[1732873019289,0.55,3574.4,3573.6,0.08993412]
[1732873019583,1.22831899,3574.4,3573.7,2.79821]
[1732873019975,4.02599899,3574.4,3573.8,0.08983285]
[1732873020274,0.55,3574.1,3573.8,0.08983285]
[1732873020494,0.55,3574.1,3573.5,3.62936]
[1732873020900,0.81179664,3574.3,3573.6,2.88816512]
[1732873021112,0.55,3574.1,3573.6,2.88820512]
[1732873021878,3.34784,3574.2,3573.6,0.08992512]
[1732873022289,3.34773,3574.4,3573.6,2.88821512]
[1732873022620,0.55,3574.2,3573.6,2.88821512]
[1732873023028,3.34783,3574.2,3573.6,2.88821512]
[1732873024287,3.962373,3574.2,3573.6,2.88821512]
[1732873024993,1.164543,3574.2,3573.6,2.88821512]
[1732873025595,1.164543,3574.2,3573.7,2.79821]
[1732873025811,1.164543,3574.2,3573.6,0.08992512]
[1732873026011,1.164543,3574.2,3573.8,0.08983285]
[1732873026316,1.164543,3574.2,3573.9,0.08978672]
[1732873026696,1.164543,3574.2,3574.0,0.08974059]
[1732873027015,1.164543,3574.2,3573.6,2.79829]
[1732873027215,0.55,3574.2,3574.1,0.08969223]
[1732873027403,0.55,3574.2,3573.6,2.79829]
[1732873027603,0.55,3574.2,3574.1,0.08969223]
[1732873027806,0.55,3574.2,3573.7,2.79816]
[1732873028184,0.55,3574.3,3573.8,0.08983061]
[1732873028383,1.246287,3574.3,3573.8,0.08983061]
[1732873028625,1.246287,3574.3,3573.7,2.79816]
[1732873028823,4.044047,3574.3,3573.9,0.08978448]
[1732873029119,4.044047,3574.3,3573.7,2.79816]
[1732873029319,4.044047,3574.3,3574.0,0.08973835]
[1732873029525,0.55,3574.1,3573.7,2.79816]
[1732873029817,0.6180669,3574.2,3573.7,2.79816]
[1732873029818,3.34776,3574.3,3573.7,2.79816]
[1732873030030,3.3476,3574.5,3574.0,0.7979]
[1732873030319,2.79767,3574.4,3574.0,0.7979]
[1732873030619,2.79767,3574.4,3573.7,2.79816]
[1732873031183,3.34796,3574.1,3573.3,2.79852]
[1732873031687,0.55,3574.1,3573.4,2.79839]
[1732873031890,0.55,3574.2,3573.4,2.79839]
[1732873032192,3.34785,3574.2,3573.4,2.79839]
[1732873032428,4.0790947,3574.2,3573.4,2.79839]
[1732873033094,4.0790947,3574.2,3573.2,2.79853]
[1732873033293,2.798,3574.0,3573.2,2.79853]
[1732873033520,2.798,3574.0,3573.3,2.88859993]
[1732873034954,4.0790947,3574.2,3573.3,2.88859993]
[1732873035249,0.55,3574.0,3573.3,2.88859993]
[1732873035417,3.34799,3574.0,3573.3,0.09007993]
[1732873035613,0.7847,3573.9,3573.3,0.09007993]
[1732873035819,0.55,3573.8,3573.1,0.8177]
[1732873036038,0.55,3573.8,3573.4,0.08946535]
[1732873036253,0.55,3573.8,3573.1,0.8177]
[1732873036414,2.79822,3573.7,3573.5,0.08941922]
[1732873036611,2.79822,3573.7,3573.1,0.8177]
[1732873036815,0.55,3573.8,3573.6,0.08937311]
[1732873037046,0.55,3573.8,3573.1,0.8177]
[1732873037252,0.81238832,3573.8,3573.7,0.08932699]
[1732873037421,3.78763983,3573.8,3573.1,0.8177]
[1732873037630,3.34814,3573.8,3573.7,0.08932699]
[1732873037831,3.61054476,3573.8,3573.1,0.8177]
[1732873038129,0.55,3573.8,3573.7,0.08932699]
[1732873038332,0.81240349,3573.8,3573.1,3.61637]
[1732873038684,3.34814,3573.8,3573.1,3.61637]
[1732873038830,3.34814,3573.8,3573.2,0.08952278]
[1732873039233,0.55,3573.8,3573.2,0.08952278]
[1732873039954,0.81238339,3573.8,3573.2,0.08952278]
[1732873040158,0.81238165,3573.8,3573.2,0.08952278]
[1732873040460,0.55,3573.8,3573.2,0.08952278]
[1732873040756,0.81237048,3573.8,3573.2,0.08952278]
[1732873041221,0.55,3573.8,3573.2,0.08952278]
[1732873041622,0.81236028,3573.8,3573.2,0.08952278]
[1732873041818,0.55,3573.8,3573.2,0.08952278]
[1732873042241,0.81234736,3573.8,3573.2,0.08952278]
[1732873042460,0.55,3573.8,3573.2,0.08952278]
[1732873048677,0.26230891,3573.8,3573.5,4.28798438]
[1732873048835,2.79757,3574.6,3573.7,2.79818]
[1732873049039,0.26229435,3574.5,3573.7,2.79818]
[1732873049239,0.26229435,3574.4,3573.8,0.09017657]
[1732873049538,0.26229435,3574.3,3573.8,0.09017657]
[1732873049739,0.26229435,3574.2,3573.8,0.09017657]
[1732873049968,0.26229435,3574.1,3573.7,2.79818]
[1732873050169,0.55,3574.5,3573.8,0.09017657]
[1732873050368,0.55,3574.3,3573.8,0.09017657]
[1732873050665,0.26229435,3574.2,3573.7,2.79818]
[1732873050865,0.26229435,3574.1,3573.9,0.09013044]
[1732873051064,0.26229435,3574.1,3573.7,2.79818]
[1732873051065,0.26229435,3574.2,3573.7,2.79818]
[1732873051292,0.26229435,3574.1,3574.0,5.16518869]
[1732873051463,0.26229435,3574.4,3574.1,2.7979]
[1732873051794,0.26229435,3574.7,3574.2,2.88781207]
[1732873051966,0.26229435,3574.6,3574.2,2.88781207]
[1732873052168,0.7704,3574.8,3574.2,3.68410371]
[1732873052483,0.26223993,3574.7,3574.2,3.68410371]
[1732873052677,0.7704,3574.8,3574.2,3.68410371]
[1732873053856,0.7704,3574.8,3574.2,0.88628371]
[1732873056278,0.55,3574.7,3574.2,0.08999207]
[1732873056452,2.79729,3574.9,3574.2,0.08999207]
[1732873056453,3.34775,3574.3,3574.2,0.08999207]
[1732873056669,3.34775,3574.3,3573.1,2.79868]
[1732873056670,0.55,3574.1,3573.4,0.7714]
[1732873056887,0.55,3574.1,3573.5,4.28799438]
[1732873057794,0.55,3574.1,3573.6,2.79827]
[1732873059698,0.55,3574.1,3573.7,1.48962438]
[1732873059879,0.55,3574.1,3573.7,4.28778438]
[1732873060086,0.55,3574.1,3573.7,1.48962438]
[1732873060289,0.55,3574.1,3573.7,2.00996491]
[1732873060504,0.55,3574.1,3573.7,4.80816491]
[1732873060799,0.55,3574.1,3573.7,0.52034053]
[1732873060988,0.55,3574.1,3573.5,4.28796438]
[1732873063581,0.55,3574.1,3573.6,0.09012281]
[1732873064172,0.7993,3574.2,3573.6,2.88840281]
[1732873064402,1.06132974,3574.2,3573.6,2.88840281]
[1732873064559,0.7993,3574.2,3573.6,2.88840281]
[1732873064763,1.06132974,3574.2,3573.6,2.88840281]
[1732873064974,0.55,3574.2,3573.8,1.48962438]
[1732873065303,0.55,3574.3,3573.9,0.89838441]
[1732873065489,0.81202974,3574.3,3573.9,0.89838441]
[1732873065808,0.55,3574.3,3573.9,0.08998441]
[1732873066011,0.81202974,3574.3,3573.9,0.08998441]
[1732873066313,0.55,3574.3,3574.0,0.08993828]
[1732873066614,0.26202911,3574.3,3574.0,0.08993828]
[1732873066774,0.26202911,3574.3,3573.7,2.79819]
[1732873066775,0.55,3574.2,3573.7,2.79819]
[1732873066975,0.81202911,3574.2,3573.7,2.79819]
[1732873067174,0.55,3574.3,3573.8,2.88814054]
[1732873067410,0.81202911,3574.3,3573.8,2.88814054]
[1732873067609,0.26202911,3574.2,3573.8,2.88814054]
[1732873069085,0.55,3574.3,3573.9,0.55775418]
[1732873069298,0.26202911,3574.2,3573.9,0.64773859]
[1732873069611,0.26202911,3574.2,3574.1,2.7979]
[1732873069814,0.26202911,3574.4,3574.1,2.7979]
[1732873070120,0.26202911,3574.4,3574.1,2.88779215]
[1732873073012,0.26202911,3574.4,3574.1,3.70029215]
[1732873073210,0.26202911,3574.7,3574.1,3.70029215]
[1732873073533,0.81202911,3574.6,3574.1,2.88779215]
[1732873073746,0.26202911,3574.5,3574.1,2.88779215]
[1732873073905,0.26202911,3574.4,3574.1,2.88779215]
[1732873074238,0.26202911,3574.3,3574.1,2.88779215]
[1732873074410,0.26202911,3574.5,3574.1,2.88779215]
[1732873074607,0.26202911,3574.4,3574.1,2.7979]
[1732873074824,0.26202911,3574.3,3574.2,0.08984603]
[1732873075128,0.26202911,3574.5,3574.2,0.08984603]
[1732873075330,0.26202911,3574.4,3574.2,0.08984603]
[1732873075530,1.03562911,3574.3,3574.2,0.08984603]
[1732873075741,0.7736,3574.3,3574.2,0.08984603]
[1732873076100,1.03562911,3574.3,3574.2,0.08984603]
[1732873076301,1.03562911,3574.3,3574.0,2.79797]
[1732873076302,0.7736,3574.3,3574.0,2.79797]
[1732873076520,0.7736,3574.3,3574.2,0.08984603]
[1732873077007,0.7736,3574.3,3574.2,0.08981907]
[1732873077229,0.7736,3574.3,3574.0,2.79797]
[1732873077410,1.03572391,3574.3,3574.0,2.79797]
[1732873077617,0.7736,3574.3,3574.1,2.88776519]
[1732873077813,0.26212391,3574.4,3574.1,2.88776519]
[1732873078029,0.26212391,3574.3,3574.1,0.08986519]
[1732873078308,0.26214433,3574.2,3573.8,2.79813]
[1732873078642,0.26214433,3574.5,3573.9,0.56655735]
[1732873078807,0.26214433,3574.4,3573.9,0.56655735]
[1732873079012,0.26214433,3574.3,3573.9,0.56655735]
[1732873079209,0.26214433,3574.2,3573.9,0.56655735]
[1732873079432,0.26214433,3574.5,3574.1,2.7979]
[1732873079627,0.26214433,3574.4,3574.1,2.7979]
[1732873079834,0.26214433,3574.3,3574.1,2.7979]
[1732873080141,1.3187,3574.6,3574.1,2.7979]
[1732873080343,0.26217559,3574.2,3573.9,2.79804]
[1732873080548,1.3187,3574.6,3574.0,2.79795]
[1732873080707,0.26217289,3574.5,3574.0,2.79795]
[1732873080907,0.26217289,3574.4,3574.0,2.79795]
[1732873081244,0.26217289,3574.3,3574.0,2.79795]
[1732873081403,0.26217289,3574.2,3574.0,2.79795]
[1732873081612,1.3187,3574.6,3574.0,2.79795]
[1732873081832,0.26217466,3574.5,3574.0,2.79795]
[1732873082141,0.26217466,3574.4,3574.0,2.79795]
[1732873082340,0.26217466,3574.3,3574.0,2.79795]
[1732873082544,0.26220228,3574.2,3574.0,2.79795]
[1732873082746,0.26220228,3574.2,3574.1,3.5936]
[1732873082945,2.79713,3575.1,3574.3,2.7977]
[1732873082946,0.26219614,3574.5,3574.3,2.7977]
[1732873083241,0.26219614,3574.5,3574.4,2.79767]
[1732873083549,0.26222613,3574.5,3574.4,2.79767]
[1732873083935,0.55,3574.9,3574.4,2.79767]
[1732873084361,0.7861,3575.3,3574.8,2.79735]
[1732873084563,0.7861,3575.3,3574.7,1.48962438]
[1732873084767,0.7861,3575.3,3574.6,3.55641]
[1732873085084,0.7861,3575.3,3574.7,2.7974]
[1732873086945,0.7861,3575.3,3574.8,2.79734]
[1732873088879,0.7861,3575.3,3574.9,2.79727]
[1732873089446,0.7861,3575.3,3574.7,3.432798]
[1732873089976,0.7861,3575.3,3574.8,2.79735]
[1732873090854,0.7861,3575.3,3574.8,3.35507294]
[1732873091887,0.55,3575.2,3574.2,0.8267]
[1732873092075,0.7683,3574.9,3574.3,2.79768]
[1732873092278,0.7683,3574.9,3574.4,2.79765]
[1732873093476,0.7683,3574.9,3574.5,0.08945384]
[1732873095095,0.7683,3574.9,3574.5,2.88704384]
[1732873097040,0.7683,3574.9,3574.6,2.79748]
[1732873097338,0.7683,3574.9,3574.7,0.08941103]
[1732873097537,0.7683,3574.9,3574.4,2.79764]
[1732873097701,1.3183,3574.9,3574.8,0.08936492]
[1732873097902,1.3183,3574.9,3574.4,2.79764]
[1732873097903,1.50513,3574.9,3574.4,2.79764]
[1732873098102,1.50513,3574.9,3574.8,0.08936492]
[1732873098342,1.50513,3574.9,3574.4,2.79764]
[1732873098523,1.3183,3574.9,3574.8,0.08936492]
[1732873098703,1.3183,3574.9,3574.5,2.79753]
[1732873098903,1.3183,3574.9,3574.8,0.08936492]
[1732873099103,1.3183,3574.9,3574.5,2.79753]
[1732873099341,1.3183,3574.9,3574.8,0.08936492]
[1732873099522,1.3183,3574.9,3574.5,2.79753]
[1732873099722,1.3183,3574.9,3574.8,0.08936492]
[1732873099924,1.3183,3574.9,3574.7,2.79743]
[1732873100313,2.79682,3575.5,3574.8,0.08936492]
[1732873100314,0.55,3575.4,3574.8,0.08936492]
[1732873100515,0.709744,3575.3,3575.0,2.79719]
[1732873101045,0.7507,3575.5,3575.1,0.08922661]
[1732873101354,0.26188517,3575.4,3575.1,0.08922661]
[1732873101501,0.7507,3575.5,3575.1,0.08922661]
[1732873101502,0.26188517,3575.3,3575.1,0.08922661]
[1732873101708,0.26188517,3575.2,3575.1,2.88634661]
[1732873102145,0.55,3575.4,3575.1,2.88634661]
[1732873102351,0.26186587,3575.3,3575.1,2.88634661]
[1732873102507,0.26186587,3575.2,3575.1,2.88634661]
[1732873103564,0.26185694,3575.2,3575.1,2.88634661]
[1732873105126,0.26185694,3575.2,3575.1,0.08922661]
[1732873105527,0.26185694,3575.2,3574.9,2.79727]
[1732873105769,0.959736,3575.4,3575.1,0.08914934]
[1732873105956,0.959736,3575.4,3575.0,0.08919544]
[1732873105957,0.71259029,3575.3,3575.0,0.08919544]
[1732873106276,0.26186855,3575.2,3575.1,0.08914934]
[1732873106763,0.4507316,3575.3,3574.7,0.7846]
[1732873106971,0.4507316,3575.3,3574.6,2.7975]
[1732873106972,1.3458,3575.2,3575.1,0.08914934]
[1732873107125,1.60766793,3575.2,3574.6,2.79744]
[1732873107331,0.26186793,3575.1,3574.6,2.79744]
[1732873107674,0.26186793,3575.0,3574.6,2.79744]
[1732873107853,0.26186793,3574.9,3574.6,2.79746]
[1732873108060,0.26186793,3574.8,3574.6,2.79746]
[1732873108376,0.26186793,3574.7,3574.6,2.79746]
[1732873108686,0.26186793,3575.1,3574.6,2.79746]
[1732873108967,0.77885512,3575.0,3574.6,2.79746]
[1732873109173,0.26186793,3574.9,3574.6,2.79746]
[1732873109471,0.26186793,3574.8,3574.6,2.79746]